[Event "Titled Tuesday Blitz July 18 Late 2023"]
[White "Mujumdar, Sameer"]
[Black "Geivondian, Arman"]
[WhiteFideId "2029707"]
[BlackFideId "24102032"]
[WhiteElo "2469"]
[BlackElo "2593"]
[Result "0-1"]
[Round "6"]
[TimeControl "180+2"]
[Date "2023.07.18"]
[WhiteClock "0:00:11"]
[BlackClock "0:01:04"]
[Board "64"]

1. e4 {[%clk 0:03:00]}  c6 {[%clk 0:02:59]} 2. d4 {[%clk 0:03:00]}  d5 {[%clk 0:03:00]} 3. e5 {[%clk 0:02:58]}  Bf5 {[%clk 0:03:00]} 4. Nf3 {[%clk 0:02:56]}  e6 {[%clk 0:03:00]} 5. Be2 {[%clk 0:02:55]}  Nd7 {[%clk 0:03:00]} 6. Be3 {[%clk 0:02:54]}  h6 {[%clk 0:03:00]} 7. O-O {[%clk 0:02:53]}  g5 {[%clk 0:03:00]} 8. c3 {[%clk 0:02:52]}  Ne7 {[%clk 0:03:01]} 9. Nbd2 {[%clk 0:02:51]}  Bg7 {[%clk 0:03:01]} 10. Re1 {[%clk 0:02:51]}  O-O {[%clk 0:03:02]} 11. Nf1 {[%clk 0:02:51]}  Ng6 {[%clk 0:03:02]} 12. h3 {[%clk 0:02:43]}  f6 {[%clk 0:03:00]} 13. exf6 {[%clk 0:02:41]}  Nxf6 {[%clk 0:03:01]} 14. Ng3 {[%clk 0:02:39]}  Ne4 {[%clk 0:02:54]} 15. Nxe4 {[%clk 0:02:17]}  Bxe4 {[%clk 0:02:55]} 16. Nd2 {[%clk 0:02:10]}  Bf5 {[%clk 0:02:55]} 17. Nf1 {[%clk 0:02:07]}  e5 {[%clk 0:02:55]} 18. Ng3 {[%clk 0:02:00]}  Be6 {[%clk 0:02:51]} 19. dxe5 {[%clk 0:01:55]}  Bxe5 {[%clk 0:02:52]} 20. Qd3 {[%clk 0:01:52]}  Qf6 {[%clk 0:02:49]} 21. Nh5 {[%clk 0:01:19]}  Qf7 {[%clk 0:02:47]} 22. Bg4 {[%clk 0:01:20]}  Rae8 {[%clk 0:02:26]} 23. Bd4 {[%clk 0:01:12]}  Bxg4 {[%clk 0:02:06]} 24. hxg4 {[%clk 0:01:10]}  Nf4 {[%clk 0:01:58]} 25. Nxf4 {[%clk 0:01:08]}  Bxf4 {[%clk 0:01:59]} 26. g3 {[%clk 0:01:04]}  Bb8 {[%clk 0:01:56]} 27. Kg2 {[%clk 0:01:04]}  b6 {[%clk 0:01:54]} 28. b4 {[%clk 0:01:03]}  Qh7 {[%clk 0:01:49]} 29. Qxh7+ {[%clk 0:01:01]}  Kxh7 {[%clk 0:01:50]} 30. a4 {[%clk 0:00:58]}  Bd6 {[%clk 0:01:36]} 31. b5 {[%clk 0:00:52]}  c5 {[%clk 0:01:36]} 32. Be3 {[%clk 0:00:51]}  Re5 {[%clk 0:01:35]} 33. Bd2 {[%clk 0:00:50]}  Rfe8 {[%clk 0:01:35]} 34. Rxe5 {[%clk 0:00:50]}  Rxe5 {[%clk 0:01:36]} 35. Re1 {[%clk 0:00:50]}  Rxe1 {[%clk 0:01:36]} 36. Bxe1 {[%clk 0:00:51]}  Kg6 {[%clk 0:01:36]} 37. Kf3 {[%clk 0:00:49]}  Be5 {[%clk 0:01:36]} 38. Bd2 {[%clk 0:00:47]}  Kf6 {[%clk 0:01:36]} 39. Ke2 {[%clk 0:00:47]}  Ke6 {[%clk 0:01:36]} 40. Kd3 {[%clk 0:00:46]}  c4+ {[%clk 0:01:34]} 41. Ke2 {[%clk 0:00:43]}  d4 {[%clk 0:01:34]} 42. cxd4 {[%clk 0:00:40]}  Bxd4 {[%clk 0:01:35]} 43. f4 {[%clk 0:00:39]}  gxf4 {[%clk 0:01:24]} 44. gxf4 {[%clk 0:00:39]}  Kf6 {[%clk 0:01:24]} 45. Kd1 {[%clk 0:00:36]}  Ke6 {[%clk 0:01:23]} 46. Kc2 {[%clk 0:00:37]}  Kd5 {[%clk 0:01:23]} 47. f5 {[%clk 0:00:35]}  Bg7 {[%clk 0:01:22]} 48. Bc3 {[%clk 0:00:32]}  Bf8 {[%clk 0:01:22]} 49. Bd2 {[%clk 0:00:25]}  Ke4 {[%clk 0:01:22]} 50. Kc3 {[%clk 0:00:25]}  Kd5 {[%clk 0:01:22]} 51. Bf4 {[%clk 0:00:24]}  Bg7+ {[%clk 0:01:20]} 52. Kc2 {[%clk 0:00:23]}  Kc5 {[%clk 0:01:10]} 53. Bb8 {[%clk 0:00:23]}  Kb4 {[%clk 0:01:10]} 54. Bxa7 {[%clk 0:00:23]}  Bd4 {[%clk 0:01:07]} 55. Bb8 {[%clk 0:00:20]}  Kxa4 {[%clk 0:01:07]} 56. Bf4 {[%clk 0:00:19]}  Bg7 {[%clk 0:01:05]} 57. g5 {[%clk 0:00:18]}  hxg5 {[%clk 0:01:05]} 58. Bxg5 {[%clk 0:00:19]}  Kxb5 {[%clk 0:01:06]} 59. f6 {[%clk 0:00:19]}  Bf8 {[%clk 0:01:06]} 60. f7 {[%clk 0:00:19]}  Kc6 {[%clk 0:01:04]} 61. Kc3 {[%clk 0:00:17]}  Kd5 {[%clk 0:01:05]} 62. Bc1 {[%clk 0:00:16]}  b5 {[%clk 0:01:04]} 63. Bb2 {[%clk 0:00:15]}  b4+ {[%clk 0:01:03]} 64. Kc2 {[%clk 0:00:15]}  Ke6 {[%clk 0:01:03]} 65. Bc1 {[%clk 0:00:14]}  Kxf7 {[%clk 0:01:03]} 66. Be3 {[%clk 0:00:14]}  Ke6 {[%clk 0:01:03]} 67. Bb6 {[%clk 0:00:15]}  Kd5 {[%clk 0:01:03]} 68. Be3 {[%clk 0:00:14]}  b3+ {[%clk 0:01:04]} 69. Kb2 {[%clk 0:00:14]}  Bg7+ {[%clk 0:01:05]} 70. Kb1 {[%clk 0:00:14]}  Ke4 {[%clk 0:01:05]} 71. Bd2 {[%clk 0:00:14]}  Kd3 {[%clk 0:01:05]} 72. Be1 {[%clk 0:00:13]}  c3 {[%clk 0:01:05]} 73. Bxc3 {[%clk 0:00:11]}  Kxc3 {[%clk 0:01:04]} 0-1


[Site "https://www.chess.com"]

[Event "Titled Tuesday Blitz July 18 Late 2023"]
[White "Disconzi da Silva, Rodrigo"]
[Black "Bartel, Michal"]
[WhiteFideId "2100991"]
[BlackFideId "1119257"]
[WhiteElo "2445"]
[BlackElo "2574"]
[Result "0-1"]
[Round "6"]
[TimeControl "180+2"]
[Date "2023.07.18"]
[WhiteClock "0:00:00"]
[BlackClock "0:00:15"]
[Board "67"]

1. d4 {[%clk 0:03:00]}  Nf6 {[%clk 0:02:59]} 2. c4 {[%clk 0:03:00]}  c5 {[%clk 0:03:00]} 3. d5 {[%clk 0:02:59]}  e6 {[%clk 0:03:00]} 4. Nc3 {[%clk 0:02:59]}  exd5 {[%clk 0:03:00]} 5. cxd5 {[%clk 0:02:59]}  d6 {[%clk 0:03:01]} 6. e4 {[%clk 0:03:00]}  g6 {[%clk 0:03:01]} 7. f3 {[%clk 0:03:00]}  Bg7 {[%clk 0:02:59]} 8. Bg5 {[%clk 0:03:00]}  h6 {[%clk 0:02:57]} 9. Be3 {[%clk 0:02:59]}  O-O {[%clk 0:02:56]} 10. Qd2 {[%clk 0:02:59]}  Kh7 {[%clk 0:02:55]} 11. Nge2 {[%clk 0:02:59]}  a6 {[%clk 0:02:51]} 12. a4 {[%clk 0:02:58]}  Nbd7 {[%clk 0:02:51]} 13. Ng3 {[%clk 0:02:58]}  Re8 {[%clk 0:02:51]} 14. Be2 {[%clk 0:02:58]}  Rb8 {[%clk 0:02:51]} 15. O-O {[%clk 0:02:58]}  Ne5 {[%clk 0:02:50]} 16. Rab1 {[%clk 0:02:51]}  Bd7 {[%clk 0:02:49]} 17. Nh1 {[%clk 0:02:46]}  b5 {[%clk 0:02:46]} 18. axb5 {[%clk 0:02:45]}  axb5 {[%clk 0:02:46]} 19. b4 {[%clk 0:02:44]}  c4 {[%clk 0:02:38]} 20. Nf2 {[%clk 0:02:42]}  g5 {[%clk 0:02:33]} 21. Ra1 {[%clk 0:02:40]}  Ng6 {[%clk 0:02:29]} 22. Ra7 {[%clk 0:02:35]}  Nh5 {[%clk 0:02:24]} 23. Bd4 {[%clk 0:02:24]}  Nhf4 {[%clk 0:02:18]} 24. Rfa1 {[%clk 0:02:21]}  Ne5 {[%clk 0:02:07]} 25. Bf1 {[%clk 0:02:10]}  f5 {[%clk 0:02:06]} 26. exf5 {[%clk 0:02:08]}  Bxf5 {[%clk 0:02:06]} 27. Nce4 {[%clk 0:02:01]}  Re7 {[%clk 0:01:56]} 28. Kh1 {[%clk 0:01:56]}  Rc8 {[%clk 0:01:38]} 29. Rxe7 {[%clk 0:01:46]}  Qxe7 {[%clk 0:01:37]} 30. Ra7 {[%clk 0:01:46]}  Rc7 {[%clk 0:01:36]} 31. Ra6 {[%clk 0:01:40]}  Nxd5 {[%clk 0:01:25]} 32. Nxd6 {[%clk 0:01:32]}  Bg6 {[%clk 0:01:21]} 33. Nxb5 {[%clk 0:01:27]}  Rd7 {[%clk 0:01:18]} 34. Bxe5 {[%clk 0:01:16]}  Bxe5 {[%clk 0:01:13]} 35. Rxg6 {[%clk 0:00:58]}  Kxg6 {[%clk 0:01:12]} 36. Bxc4 {[%clk 0:00:57]}  Nf4 {[%clk 0:01:04]} 37. Qc2+ {[%clk 0:00:56]}  Kg7 {[%clk 0:01:04]} 38. g3 {[%clk 0:00:53]}  Ng6 {[%clk 0:00:58]} 39. Ng4 {[%clk 0:00:48]}  Qxb4 {[%clk 0:00:53]} 40. Bd3 {[%clk 0:00:21]}  Ba1 {[%clk 0:00:24]} 41. Ne3 {[%clk 0:00:21]}  Qe1+ {[%clk 0:00:20]} 42. Nf1 {[%clk 0:00:19]}  Qe6 {[%clk 0:00:20]} 43. Kg2 {[%clk 0:00:17]}  Re7 {[%clk 0:00:17]} 44. Nd2 {[%clk 0:00:17]}  Bf6 {[%clk 0:00:17]} 45. Ne4 {[%clk 0:00:17]}  Ne5 {[%clk 0:00:17]} 46. Nc5 {[%clk 0:00:15]}  Qd5 {[%clk 0:00:17]} 47. Be4 {[%clk 0:00:15]}  Qd8 {[%clk 0:00:14]} 48. Qb3 {[%clk 0:00:09]}  Nf7 {[%clk 0:00:14]} 49. Ne6+ {[%clk 0:00:09]}  Rxe6 {[%clk 0:00:14]} 50. Qxe6 {[%clk 0:00:09]}  Qd2+ {[%clk 0:00:15]} 51. Kh3 {[%clk 0:00:09]}  g4+ {[%clk 0:00:14]} 52. Qxg4+ {[%clk 0:00:00]}  Ng5+ {[%clk 0:00:15]} 0-1


[Site "https://www.chess.com"]

[Event "Titled Tuesday Blitz July 18 Late 2023"]
[White "robertoalejandro10"]
[Black "Jorajuria Mendoza, Algol"]
[BlackFideId "5128897"]
[WhiteElo "2572"]
[BlackElo "2431"]
[Result "1-0"]
[Round "6"]
[TimeControl "180+2"]
[Date "2023.07.18"]
[WhiteClock "0:01:12"]
[BlackClock "0:00:04"]
[Board "68"]

1. Nf3 {[%clk 0:02:58]}  d5 {[%clk 0:02:57]} 2. b3 {[%clk 0:02:58]}  c5 {[%clk 0:02:55]} 3. Bb2 {[%clk 0:02:58]}  Nc6 {[%clk 0:02:55]} 4. g3 {[%clk 0:02:59]}  Bg4 {[%clk 0:02:52]} 5. Bg2 {[%clk 0:02:59]}  e6 {[%clk 0:02:47]} 6. d3 {[%clk 0:02:55]}  Nf6 {[%clk 0:02:46]} 7. Nbd2 {[%clk 0:02:55]}  Be7 {[%clk 0:02:40]} 8. O-O {[%clk 0:02:54]}  O-O {[%clk 0:02:39]} 9. Re1 {[%clk 0:02:53]}  Qc7 {[%clk 0:02:27]} 10. e4 {[%clk 0:02:52]}  dxe4 {[%clk 0:02:22]} 11. Nxe4 {[%clk 0:02:53]}  Nxe4 {[%clk 0:02:14]} 12. Rxe4 {[%clk 0:02:53]}  Bf5 {[%clk 0:01:59]} 13. Re1 {[%clk 0:02:34]}  Rac8 {[%clk 0:01:24]} 14. Qd2 {[%clk 0:02:33]}  Qd8 {[%clk 0:01:22]} 15. h4 {[%clk 0:02:24]}  Bf6 {[%clk 0:01:21]} 16. Ne5 {[%clk 0:02:23]}  Nxe5 {[%clk 0:01:17]} 17. Bxe5 {[%clk 0:02:24]}  b6 {[%clk 0:00:58]} 18. a4 {[%clk 0:02:17]}  Bxe5 {[%clk 0:00:52]} 19. Rxe5 {[%clk 0:02:18]}  Qd4 {[%clk 0:00:52]} 20. Rae1 {[%clk 0:02:16]}  Rfd8 {[%clk 0:00:47]} 21. Qe2 {[%clk 0:01:59]}  h6 {[%clk 0:00:37]} 22. Re3 {[%clk 0:01:55]}  a6 {[%clk 0:00:30]} 23. Be4 {[%clk 0:01:55]}  Bxe4 {[%clk 0:00:22]} 24. Rxe4 {[%clk 0:01:56]}  Qd5 {[%clk 0:00:21]} 25. Re5 {[%clk 0:01:56]}  Qd4 {[%clk 0:00:20]} 26. Qf3 {[%clk 0:01:56]}  b5 {[%clk 0:00:20]} 27. axb5 {[%clk 0:01:57]}  axb5 {[%clk 0:00:21]} 28. R5e4 {[%clk 0:01:52]}  Qd5 {[%clk 0:00:20]} 29. Qe3 {[%clk 0:01:31]}  Ra8 {[%clk 0:00:15]} 30. Re5 {[%clk 0:01:28]}  Qd4 {[%clk 0:00:15]} 31. Rxc5 {[%clk 0:01:17]}  Ra1 {[%clk 0:00:13]} 32. Rxa1 {[%clk 0:01:16]}  Qxa1+ {[%clk 0:00:13]} 33. Kg2 {[%clk 0:01:16]}  b4 {[%clk 0:00:13]} 34. Rc4 {[%clk 0:01:16]}  Rb8 {[%clk 0:00:11]} 35. Qf4 {[%clk 0:01:16]}  Rb5 {[%clk 0:00:09]} 36. Qe4 {[%clk 0:01:14]}  Rf5 {[%clk 0:00:04]} 37. Rc8+ {[%clk 0:01:12]} 1-0


[Site "https://www.chess.com"]

[Event "Titled Tuesday Blitz July 18 Late 2023"]
[White "Mazurkiewicz, Michal"]
[Black "Gascon Del Nogal, Jose Rafael"]
[WhiteFideId "1124943"]
[BlackFideId "3902463"]
[WhiteElo "2426"]
[BlackElo "2562"]
[Result "0-1"]
[Round "6"]
[TimeControl "180+2"]
[Date "2023.07.18"]
[WhiteClock "0:00:00"]
[BlackClock "0:00:18"]
[Board "69"]

1. e4 {[%clk 0:03:00]}  c5 {[%clk 0:02:58]} 2. Nf3 {[%clk 0:03:00]}  d6 {[%clk 0:02:57]} 3. g3 {[%clk 0:03:00]}  Bg4 {[%clk 0:02:54]} 4. h3 {[%clk 0:02:58]}  Bxf3 {[%clk 0:02:54]} 5. Qxf3 {[%clk 0:02:59]}  Nc6 {[%clk 0:02:55]} 6. c3 {[%clk 0:02:57]}  g6 {[%clk 0:02:53]} 7. Bg2 {[%clk 0:02:57]}  Bg7 {[%clk 0:02:50]} 8. d3 {[%clk 0:02:56]}  Nf6 {[%clk 0:02:48]} 9. Be3 {[%clk 0:02:54]}  O-O {[%clk 0:02:48]} 10. O-O {[%clk 0:02:54]}  Nd7 {[%clk 0:02:48]} 11. Qd1 {[%clk 0:02:54]}  Qb6 {[%clk 0:02:33]} 12. Qd2 {[%clk 0:02:22]}  Rab8 {[%clk 0:02:03]} 13. a4 {[%clk 0:02:21]}  a6 {[%clk 0:02:02]} 14. Na3 {[%clk 0:02:20]}  Rfc8 {[%clk 0:01:58]} 15. Nc4 {[%clk 0:02:20]}  Qc7 {[%clk 0:01:58]} 16. a5 {[%clk 0:02:20]}  b5 {[%clk 0:01:40]} 17. axb6 {[%clk 0:02:21]}  Nxb6 {[%clk 0:01:40]} 18. Rxa6 {[%clk 0:01:51]}  Nxc4 {[%clk 0:01:39]} 19. dxc4 {[%clk 0:01:52]}  Qb7 {[%clk 0:01:40]} 20. Ra2 {[%clk 0:01:30]}  Ne5 {[%clk 0:01:39]} 21. Qe2 {[%clk 0:01:22]}  Qb3 {[%clk 0:01:38]} 22. Ra7 {[%clk 0:01:16]}  Nxc4 {[%clk 0:01:25]} 23. Rxe7 {[%clk 0:01:13]}  Nxb2 {[%clk 0:01:05]} 24. Bf4 {[%clk 0:01:03]}  Nc4 {[%clk 0:01:02]} 25. h4 {[%clk 0:00:49]}  h5 {[%clk 0:00:57]} 26. Bh3 {[%clk 0:00:48]}  Re8 {[%clk 0:00:54]} 27. Rxe8+ {[%clk 0:00:40]}  Rxe8 {[%clk 0:00:55]} 28. Qd3 {[%clk 0:00:41]}  Be5 {[%clk 0:00:35]} 29. Bg5 {[%clk 0:00:37]}  Nb2 {[%clk 0:00:29]} 30. Qa6 {[%clk 0:00:31]}  Qxc3 {[%clk 0:00:22]} 31. Rc1 {[%clk 0:00:11]}  Qd3 {[%clk 0:00:19]} 32. Qb5 {[%clk 0:00:00]}  Qxb5 {[%clk 0:00:18]} 0-1


[Site "https://www.chess.com"]

[Event "Titled Tuesday Blitz July 18 Late 2023"]
[White "Real_taiatai"]
[Black "Petesch, Gabriel"]
[BlackFideId "2032465"]
[WhiteElo "2349"]
[BlackElo "2548"]
[Result "0-1"]
[Round "6"]
[TimeControl "180+2"]
[Date "2023.07.18"]
[WhiteClock "0:00:08"]
[BlackClock "0:00:08"]
[Board "75"]

1. d4 {[%clk 0:02:57]}  c5 {[%clk 0:02:58]} 2. c4 {[%clk 0:02:58]}  cxd4 {[%clk 0:02:58]} 3. Qxd4 {[%clk 0:02:58]}  Nc6 {[%clk 0:02:57]} 4. Qd1 {[%clk 0:02:59]}  g6 {[%clk 0:02:56]} 5. e3 {[%clk 0:02:57]}  Bg7 {[%clk 0:02:57]} 6. Ne2 {[%clk 0:02:56]}  d6 {[%clk 0:02:58]} 7. Nbc3 {[%clk 0:02:57]}  Nf6 {[%clk 0:02:58]} 8. g3 {[%clk 0:02:57]}  Ne5 {[%clk 0:02:55]} 9. Bg2 {[%clk 0:02:55]}  Bg4 {[%clk 0:02:48]} 10. h3 {[%clk 0:02:50]}  Bf3 {[%clk 0:02:45]} 11. Bxf3 {[%clk 0:02:10]}  Nxf3+ {[%clk 0:02:45]} 12. Kf1 {[%clk 0:02:11]}  O-O {[%clk 0:02:42]} 13. b3 {[%clk 0:02:03]}  d5 {[%clk 0:02:33]} 14. cxd5 {[%clk 0:02:00]}  Nxd5 {[%clk 0:02:10]} 15. Bb2 {[%clk 0:02:00]}  Rc8 {[%clk 0:01:51]} 16. Rc1 {[%clk 0:01:56]}  Nb4 {[%clk 0:01:41]} 17. Kg2 {[%clk 0:01:44]}  Nd3 {[%clk 0:01:27]} 18. Ba1 {[%clk 0:01:34]}  e5 {[%clk 0:01:19]} 19. Rc2 {[%clk 0:01:13]}  Rc6 {[%clk 0:00:40]} 20. Rf1 {[%clk 0:01:08]}  Qd7 {[%clk 0:00:34]} 21. Kxf3 {[%clk 0:00:58]}  Qxh3 {[%clk 0:00:33]} 22. Qxd3 {[%clk 0:00:58]}  Qxf1 {[%clk 0:00:15]} 23. Nf4 {[%clk 0:00:20]}  Qh1+ {[%clk 0:00:14]} 24. Ng2 {[%clk 0:00:19]}  Qh5+ {[%clk 0:00:09]} 25. g4 {[%clk 0:00:19]}  Qh3+ {[%clk 0:00:09]} 26. Ke2 {[%clk 0:00:19]}  Qxg2 {[%clk 0:00:09]} 27. Ne4 {[%clk 0:00:17]}  Rxc2+ {[%clk 0:00:09]} 28. Qxc2 {[%clk 0:00:17]}  Qxg4+ {[%clk 0:00:09]} 29. f3 {[%clk 0:00:17]}  Qg2+ {[%clk 0:00:09]} 30. Nf2 {[%clk 0:00:17]}  h5 {[%clk 0:00:07]} 31. Qc7 {[%clk 0:00:18]}  h4 {[%clk 0:00:05]} 32. Bxe5 {[%clk 0:00:18]}  Bxe5 {[%clk 0:00:05]} 33. Qxe5 {[%clk 0:00:19]}  h3 {[%clk 0:00:06]} 34. Qe4 {[%clk 0:00:17]}  h2 {[%clk 0:00:06]} 35. Qh4 {[%clk 0:00:17]}  Kg7 {[%clk 0:00:05]} 36. Qd4+ {[%clk 0:00:17]}  f6 {[%clk 0:00:06]} 37. Qd7+ {[%clk 0:00:17]}  Rf7 {[%clk 0:00:07]} 38. Qd1 {[%clk 0:00:16]}  Re7 {[%clk 0:00:06]} 39. e4 {[%clk 0:00:16]}  g5 {[%clk 0:00:06]} 40. Ke3 {[%clk 0:00:17]}  Qg3 {[%clk 0:00:06]} 41. Qh1 {[%clk 0:00:16]}  Qg1 {[%clk 0:00:06]} 42. Ke2 {[%clk 0:00:15]}  f5 {[%clk 0:00:06]} 43. Kd3 {[%clk 0:00:11]}  fxe4+ {[%clk 0:00:06]} 44. fxe4 {[%clk 0:00:11]}  g4 {[%clk 0:00:07]} 45. e5 {[%clk 0:00:10]}  Qxf2 {[%clk 0:00:07]} 46. Qd5 {[%clk 0:00:09]}  Qf3+ {[%clk 0:00:07]} 47. Qxf3 {[%clk 0:00:08]}  gxf3 {[%clk 0:00:08]} 0-1


[Site "https://www.chess.com"]

[Event "Titled Tuesday Blitz July 18 Late 2023"]
[White "StarkyNZ"]
[Black "Zhang, Derek"]
[BlackFideId "2087871"]
[WhiteElo "2317"]
[BlackElo "2534"]
[Result "0-1"]
[Round "6"]
[TimeControl "180+2"]
[Date "2023.07.18"]
[WhiteClock "0:00:00"]
[BlackClock "0:00:03"]
[Board "77"]

1. c4 {[%clk 0:03:00]}  d6 {[%clk 0:02:59]} 2. Nc3 {[%clk 0:03:00]}  e5 {[%clk 0:03:00]} 3. g3 {[%clk 0:03:01]}  f5 {[%clk 0:03:01]} 4. Bg2 {[%clk 0:03:01]}  Nf6 {[%clk 0:03:01]} 5. e3 {[%clk 0:03:00]}  g6 {[%clk 0:03:01]} 6. Nge2 {[%clk 0:03:01]}  Bg7 {[%clk 0:03:01]} 7. d4 {[%clk 0:03:01]}  e4 {[%clk 0:03:01]} 8. h4 {[%clk 0:03:02]}  O-O {[%clk 0:03:01]} 9. Nf4 {[%clk 0:03:02]}  Qe7 {[%clk 0:03:01]} 10. Rb1 {[%clk 0:03:02]}  a5 {[%clk 0:02:55]} 11. a3 {[%clk 0:03:02]}  c6 {[%clk 0:02:55]} 12. b4 {[%clk 0:03:02]}  axb4 {[%clk 0:02:56]} 13. axb4 {[%clk 0:03:02]}  Nbd7 {[%clk 0:02:44]} 14. b5 {[%clk 0:02:58]}  c5 {[%clk 0:02:44]} 15. Ncd5 {[%clk 0:02:55]}  Nxd5 {[%clk 0:02:34]} 16. Nxd5 {[%clk 0:02:53]}  Qf7 {[%clk 0:02:34]} 17. Bb2 {[%clk 0:02:46]}  cxd4 {[%clk 0:02:30]} 18. exd4 {[%clk 0:02:42]}  Nf6 {[%clk 0:02:27]} 19. Nb6 {[%clk 0:02:40]}  Rb8 {[%clk 0:02:21]} 20. Ba3 {[%clk 0:02:34]}  Rd8 {[%clk 0:02:15]} 21. O-O {[%clk 0:02:25]}  Bf8 {[%clk 0:01:55]} 22. Qc1 {[%clk 0:01:58]}  Nd7 {[%clk 0:01:53]} 23. Nd5 {[%clk 0:01:57]}  Nf6 {[%clk 0:01:53]} 24. Nb6 {[%clk 0:01:56]}  Nd7 {[%clk 0:01:46]} 25. Nd5 {[%clk 0:01:34]}  b6 {[%clk 0:01:37]} 26. Rd1 {[%clk 0:01:34]}  Nf6 {[%clk 0:01:37]} 27. Nf4 {[%clk 0:01:28]}  Bd7 {[%clk 0:01:29]} 28. Bf1 {[%clk 0:01:27]}  Rdc8 {[%clk 0:01:27]} 29. Qb2 {[%clk 0:01:16]}  Ra8 {[%clk 0:01:24]} 30. Bb4 {[%clk 0:01:15]}  h6 {[%clk 0:01:05]} 31. Ra1 {[%clk 0:01:08]}  g5 {[%clk 0:01:05]} 32. hxg5 {[%clk 0:01:05]}  hxg5 {[%clk 0:01:06]} 33. Nh3 {[%clk 0:01:06]}  Qg6 {[%clk 0:01:01]} 34. Rxa8 {[%clk 0:01:05]}  Rxa8 {[%clk 0:01:02]} 35. Ra1 {[%clk 0:01:05]}  Rxa1 {[%clk 0:00:58]} 36. Qxa1 {[%clk 0:01:06]}  f4 {[%clk 0:00:58]} 37. Qa8 {[%clk 0:01:04]}  fxg3 {[%clk 0:00:48]} 38. Bxd6 {[%clk 0:01:02]}  gxf2+ {[%clk 0:00:48]} 39. Nxf2 {[%clk 0:01:01]}  Qe8 {[%clk 0:00:29]} 40. Qxe8 {[%clk 0:01:00]}  Bxe8 {[%clk 0:00:30]} 41. Be5 {[%clk 0:00:51]}  Be7 {[%clk 0:00:23]} 42. c5 {[%clk 0:00:46]}  bxc5 {[%clk 0:00:18]} 43. dxc5 {[%clk 0:00:46]}  e3 {[%clk 0:00:19]} 44. Nh3 {[%clk 0:00:36]}  Ng4 {[%clk 0:00:19]} 45. Bd4 {[%clk 0:00:33]}  Kf7 {[%clk 0:00:14]} 46. Bc4+ {[%clk 0:00:31]}  Kg6 {[%clk 0:00:14]} 47. c6 {[%clk 0:00:28]}  Bd6 {[%clk 0:00:12]} 48. Bd3+ {[%clk 0:00:24]}  Kh5 {[%clk 0:00:12]} 49. Be2 {[%clk 0:00:20]}  Kh4 {[%clk 0:00:13]} 50. Kg2 {[%clk 0:00:18]}  Be5 {[%clk 0:00:08]} 51. Bxe5 {[%clk 0:00:15]}  Nxe5 {[%clk 0:00:09]} 52. c7 {[%clk 0:00:12]}  Bd7 {[%clk 0:00:08]} 53. Ng1 {[%clk 0:00:11]}  g4 {[%clk 0:00:08]} 54. b6 {[%clk 0:00:11]}  Bc8 {[%clk 0:00:07]} 55. Bxg4 {[%clk 0:00:06]}  Kxg4 {[%clk 0:00:05]} 56. Ne2 {[%clk 0:00:06]}  Bb7+ {[%clk 0:00:05]} 57. Kf1 {[%clk 0:00:06]}  Nd7 {[%clk 0:00:05]} 58. Nd4 {[%clk 0:00:03]}  Nxb6 {[%clk 0:00:05]} 59. Ne6 {[%clk 0:00:02]}  Kf3 {[%clk 0:00:04]} 60. Ng5+ {[%clk 0:00:01]}  Kf4 {[%clk 0:00:04]} 61. Nf7 {[%clk 0:00:02]}  Ba6+ {[%clk 0:00:03]} 62. Ke1 {[%clk 0:00:02]}  Nd5 {[%clk 0:00:03]} 63. Nd6 {[%clk 0:00:00]}  Nxc7 {[%clk 0:00:03]} 0-1


[Site "https://www.chess.com"]

[Event "Titled Tuesday Blitz July 18 Late 2023"]
[White "Bjelobrk, Igor"]
[Black "Jovic, Stanoje"]
[WhiteFideId "4300726"]
[BlackFideId "905020"]
[WhiteElo "2651"]
[BlackElo "2479"]
[Result "1-0"]
[Round "6"]
[TimeControl "180+2"]
[Date "2023.07.18"]
[WhiteClock "0:00:17"]
[BlackClock "0:00:00"]
[Board "81"]

1. d4 {[%clk 0:02:54]}  Nf6 {[%clk 0:02:59]} 2. c4 {[%clk 0:02:54]}  e6 {[%clk 0:02:59]} 3. g3 {[%clk 0:02:54]}  d5 {[%clk 0:02:57]} 4. Bg2 {[%clk 0:02:53]}  Nc6 {[%clk 0:02:57]} 5. Nf3 {[%clk 0:02:53]}  dxc4 {[%clk 0:02:56]} 6. O-O {[%clk 0:02:51]}  b5 {[%clk 0:02:54]} 7. e3 {[%clk 0:02:38]}  Rb8 {[%clk 0:02:50]} 8. b3 {[%clk 0:02:37]}  cxb3 {[%clk 0:02:46]} 9. Qxb3 {[%clk 0:02:38]}  Be7 {[%clk 0:02:40]} 10. Bd2 {[%clk 0:02:36]}  O-O {[%clk 0:02:38]} 11. Rc1 {[%clk 0:02:36]}  Bd7 {[%clk 0:02:36]} 12. Be1 {[%clk 0:02:12]}  a5 {[%clk 0:02:33]} 13. Nbd2 {[%clk 0:02:10]}  a4 {[%clk 0:02:33]} 14. Qd1 {[%clk 0:02:07]}  Nb4 {[%clk 0:02:24]} 15. Ne5 {[%clk 0:02:02]}  Nfd5 {[%clk 0:02:18]} 16. Ne4 {[%clk 0:01:59]}  f6 {[%clk 0:02:12]} 17. Nd3 {[%clk 0:01:43]}  Nxd3 {[%clk 0:02:07]} 18. Qxd3 {[%clk 0:01:44]}  b4 {[%clk 0:02:05]} 19. Nc5 {[%clk 0:01:42]}  Bxc5 {[%clk 0:01:54]} 20. Rxc5 {[%clk 0:01:43]}  b3 {[%clk 0:01:48]} 21. axb3 {[%clk 0:01:42]}  Rxb3 {[%clk 0:01:48]} 22. Qc2 {[%clk 0:01:41]}  Qb8 {[%clk 0:01:33]} 23. Qc1 {[%clk 0:00:42]}  Rc8 {[%clk 0:01:14]} 24. Ba5 {[%clk 0:00:38]}  Nb6 {[%clk 0:01:03]} 25. e4 {[%clk 0:00:30]}  Kf7 {[%clk 0:00:50]} 26. h4 {[%clk 0:00:29]}  g6 {[%clk 0:00:49]} 27. h5 {[%clk 0:00:30]}  g5 {[%clk 0:00:42]} 28. h6 {[%clk 0:00:29]}  Qa7 {[%clk 0:00:39]} 29. e5 {[%clk 0:00:27]}  Rb5 {[%clk 0:00:35]} 30. Bxb6 {[%clk 0:00:24]}  Rxb6 {[%clk 0:00:33]} 31. exf6 {[%clk 0:00:24]}  Rd6 {[%clk 0:00:16]} 32. Rxg5 {[%clk 0:00:23]}  Qxd4 {[%clk 0:00:12]} 33. Rg7+ {[%clk 0:00:23]}  Kf8 {[%clk 0:00:12]} 34. f7 {[%clk 0:00:17]}  Qf6 {[%clk 0:00:09]} 35. Ra3 {[%clk 0:00:15]}  c5 {[%clk 0:00:07]} 36. Rf3 {[%clk 0:00:15]}  Qxg7 {[%clk 0:00:05]} 37. hxg7+ {[%clk 0:00:15]}  Kxg7 {[%clk 0:00:06]} 38. Qg5+ {[%clk 0:00:15]}  Kf8 {[%clk 0:00:05]} 39. Qg8+ {[%clk 0:00:16]}  Ke7 {[%clk 0:00:00]} 40. f8=Q+ {[%clk 0:00:17]} 1-0


[Site "https://www.chess.com"]